fUST/lending_fUST_20250518
["ID","MTS","AMOUNT","RATE_DAILY","PERIOD"]
[361409600,1747558240491,-251.52,0.00014383,2]
[361409602,1747558240500,-450.0,0.00014383,2]
[361409604,1747558240510,-450.0,0.00014383,2]
[361409606,1747558240519,-450.0,0.00014383,2]
[361409608,1747558240529,-450.0,0.00014383,2]
[361409610,1747558240538,-579.62,0.00014383,2]
[361409612,1747558240548,-2496.4480296,0.0001442,2]
[361409614,1747558240557,-307.10471333,0.00014471,2]
[361409616,1747558240567,-820.91998941,0.00014507,2]
[361409618,1747558240577,-151.0,0.0001452,2]
[361409620,1747558240586,-153.443327,0.0001452,2]
[361409622,1747558240595,-450.0,0.0001452,2]
[361409624,1747558240605,-210.12,0.0001452,2]
[361409626,1747558240614,-450.0,0.0001452,2]
[361409628,1747558240623,-450.0,0.0001452,2]
[361409630,1747558240633,-151.0,0.0001452,2]
[361409632,1747558240642,-168.96,0.0001452,2]
[361409634,1747558240651,-151.0,0.0001452,2]
[361409636,1747558240660,-450.0,0.0001452,2]
[361409638,1747558240669,-450.0,0.0001452,2]
[361409640,1747558240679,-450.0,0.0001452,2]
[361409642,1747558240689,-450.0,0.0001452,2]
[361409644,1747558240698,-194.76,0.0001452,2]
[361409646,1747558240707,-450.0,0.0001452,2]
[361409648,1747558240721,-450.0,0.0001452,2]
[361409650,1747558240730,-175.2,0.0001452,2]
[361409652,1747558240739,-788.0,0.0001452,2]
[361409654,1747558240748,-665.09,0.0001452,2]
[361409656,1747558240758,-450.0,0.0001452,2]
[361409658,1747558240767,-450.0,0.0001452,2]
[361409660,1747558240776,-976.15,0.0001452,2]
[361409662,1747558240786,-152.28,0.0001452,2]
[361409664,1747558240795,-274.92,0.0001452,2]
[361409666,1747558240804,-159.88,0.0001452,2]
[361409668,1747558240813,-1644.57,0.0001452,2]
[361409670,1747558240823,-450.0,0.0001452,2]
[361409672,1747558240832,-560.43,0.0001452,2]
[361409674,1747558240842,-450.0,0.0001452,2]
[361409676,1747558240851,-450.0,0.0001452,2]
[361409677,1747558240860,-450.0,0.0001452,2]
[361409679,1747558240869,-646.56,0.0001452,2]
[361409681,1747558240878,-974.99,0.0001452,2]
[361409683,1747558240886,-450.0,0.0001452,2]
[361409685,1747558240895,-450.0,0.0001452,2]
[361409687,1747558240905,-450.0,0.0001452,2]
[361409689,1747558240915,-506.44,0.0001452,2]
[361409691,1747558240924,-450.0,0.0001452,2]
[361409693,1747558240934,-450.0,0.0001452,2]
[361409695,1747558240943,-450.0,0.0001452,2]
[361409697,1747558240952,-450.0,0.0001452,2]
[361409699,1747558240962,-450.0,0.0001452,2]
[361409701,1747558240971,-450.0,0.0001452,2]
[361409703,1747558240981,-574.87,0.0001452,2]
[361409705,1747558240990,-450.0,0.0001452,2]
[361409707,1747558240999,-316.63,0.0001452,2]
[361409709,1747558241008,-450.0,0.0001452,2]
[361409710,1747558241018,-450.0,0.0001452,2]
[361409712,1747558241027,-450.0,0.0001452,2]
[361409714,1747558241037,-1229.67,0.0001452,2]
[361409716,1747558241046,-450.0,0.0001452,2]
[361409718,1747558241055,-450.0,0.0001452,2]
[361409719,1747558241065,-450.0,0.0001452,2]
[361409720,1747558241074,-450.0,0.0001452,2]
[361409721,1747558241083,-450.0,0.0001452,2]
[361409722,1747558241092,-579.62,0.0001452,2]
[361409723,1747558241102,-500.0,0.00014537,2]
[361409724,1747558241112,-500.0,0.00014537,2]
[361409725,1747558241121,-151.0,0.00014555,2]
[361409726,1747558241130,-151.0,0.00014555,2]
[361409727,1747558241139,-13062.42516927,0.00014555,2]
[361409728,1747558241148,-501.91420005,0.00014561,2]
[361409729,1747558241158,-500.0,0.00014574,2]
[361409730,1747558241167,-500.0,0.00014585,2]
[361409731,1747558241176,-500.0,0.00014585,2]
[361409732,1747558241186,-505.49861127,0.00014585,2]
[361409733,1747558241196,-502.53694732,0.00014585,2]
[361409734,1747558241205,-459.61612453,0.00014585,2]
[361409735,1747558241214,-502.61462071,0.00014585,2]
[361409736,1747558241223,-504.13823928,0.00014585,2]
[361409737,1747558241233,-504.90242186,0.00014585,2]
[361409738,1747558241242,-501.23841726,0.00014634,2]
[361409739,1747558241252,-450.0,0.00014657,2]
[361409740,1747558241261,-450.0,0.00014657,2]
[361409741,1747558241271,-191.0,0.00014657,2]
[361409742,1747558241280,-410.12,0.00014657,2]
[361409743,1747558241290,-450.0,0.00014657,2]
[361409744,1747558241299,-450.0,0.00014657,2]
[361409745,1747558241308,-450.0,0.00014657,2]
[361409746,1747558241318,-450.0,0.00014657,2]
[361409747,1747558241327,-450.0,0.00014657,2]
[361409748,1747558241336,-788.0,0.00014657,2]
[361409749,1747558241345,-665.09,0.00014657,2]
[361409750,1747558241355,-450.0,0.00014657,2]
[361409751,1747558241364,-450.0,0.00014657,2]
[361409752,1747558241373,-976.15,0.00014657,2]
[361409753,1747558241382,-1644.57,0.00014657,2]
[361409754,1747558241392,-418.88,0.00014657,2]
[361409755,1747558241402,-560.43,0.00014657,2]
[361409756,1747558241411,-450.0,0.00014657,2]
[361409757,1747558241420,-343.52,0.00014657,2]
[361409758,1747558241430,-450.0,0.00014657,2]
[361409759,1747558241439,-974.99,0.00014657,2]
[361409760,1747558241449,-646.56,0.00014657,2]
[361409761,1747558241459,-431.04,0.00014657,2]
[361409762,1747558241468,-450.0,0.00014657,2]
[361409763,1747558241480,-450.0,0.00014657,2]
[361409764,1747558241489,-506.44,0.00014657,2]
[361409765,1747558241499,-450.0,0.00014657,2]
[361409766,1747558241507,-450.0,0.00014657,2]
[361409767,1747558241517,-450.0,0.00014657,2]
[361409768,1747558241527,-450.0,0.00014657,2]
[361409769,1747558241536,-450.0,0.00014657,2]
[361409770,1747558241546,-450.0,0.00014657,2]
[361409771,1747558241555,-574.87,0.00014657,2]
[361409772,1747558241564,-486.56,0.00014657,2]
[361409773,1747558241574,-450.0,0.00014657,2]
[361409774,1747558241583,-450.0,0.00014657,2]
[361409775,1747558241594,-450.0,0.00014657,2]
[361409776,1747558241604,-1229.67,0.00014657,2]
[361409777,1747558241613,-450.0,0.00014657,2]
[361409778,1747558241623,-450.0,0.00014657,2]
[361409779,1747558241632,-450.0,0.00014657,2]
[361409780,1747558241642,-450.0,0.00014657,2]
[361409781,1747558241651,-450.0,0.00014657,2]
[361409782,1747558241660,-579.62,0.00014657,2]
[361409783,1747558241670,-267.801164,0.00014659,2]
[361409784,1747558241680,-154.35111,0.00014659,2]
[361409785,1747558241691,-155.0,0.00014673,2]
[361409786,1747558241701,-1023.2281214,0.00014683,2]
[361409787,1747558241712,-500.28861401,0.00014686,2]
[361409788,1747558241722,-500.81146006,0.00014686,2]
[361409789,1747558241731,-500.0,0.00014686,2]
[361409790,1747558241741,-504.15648695,0.00014719,2]
[361409791,1747558241750,-500.0,0.00014719,2]
[361409792,1747558241761,-500.0,0.00014781,2]
[361409793,1747558241771,-500.0,0.00014781,2]
[361409794,1747558241782,-500.0,0.00014781,2]
[361409795,1747558241791,-500.0,0.00014781,2]
[361409796,1747558241802,-500.0,0.00014781,2]
[361409797,1747558241811,-500.27470916,0.00014781,2]
[361409798,1747558241822,-500.0,0.00014781,2]
[361409799,1747558241832,-500.0,0.00014781,2]
[361409800,1747558241841,-500.0,0.00014781,2]
[361409801,1747558241851,-535.85070468,0.00014781,2]
[361409802,1747558241861,-500.0,0.00014781,2]
[361409803,1747558241869,-503.39628993,0.00014781,2]
[361409804,1747558241879,-500.0,0.00014781,2]
[361409805,1747558241889,-500.0,0.00014781,2]
[361409806,1747558241898,-500.0,0.00014781,2]
[361409807,1747558241908,-5000.0,0.00014786,2]
[361409808,1747558241917,-450.0,0.00014794,2]
[361409809,1747558241927,-450.0,0.00014794,2]
[361409810,1747558241937,-151.0,0.00014794,2]
[361409811,1747558241946,-450.0,0.00014794,2]
[361409812,1747558241956,-450.0,0.00014794,2]
[361409813,1747558241965,-450.0,0.00014794,2]
[361409814,1747558241974,-450.0,0.00014794,2]
[361409815,1747558241985,-450.0,0.00014794,2]
[361409816,1747558241995,-788.0,0.00014794,2]
[361409817,1747558242006,-665.09,0.00014794,2]
[361409818,1747558242015,-450.0,0.00014794,2]
[361409819,1747558242024,-450.0,0.00014794,2]
[361409820,1747558242034,-976.15,0.00014794,2]
[361409821,1747558242044,-1644.57,0.00014794,2]
[361409822,1747558242054,-560.43,0.00014794,2]
[361409823,1747558242063,-450.0,0.00014794,2]
[361409824,1747558242073,-392.4,0.00014794,2]
[361409825,1747558242083,-974.99,0.00014794,2]
[361409826,1747558242092,-646.56,0.00014794,2]
[361409827,1747558242102,-450.0,0.00014794,2]
[361409828,1747558242112,-506.44,0.00014794,2]
[361409829,1747558242122,-364.92,0.00014794,2]
[361409830,1747558242131,-450.0,0.00014794,2]
[361409831,1747558242142,-500.6,0.00014794,2]
[361409832,1747558242151,-450.0,0.00014794,2]
[361409833,1747558242160,-503.64,0.00014794,2]
[361409834,1747558242169,-450.0,0.00014794,2]
[361409835,1747558242179,-574.87,0.00014794,2]
[361409836,1747558242189,-450.0,0.00014794,2]
[361409837,1747558242199,-450.0,0.00014794,2]
[361409838,1747558242208,-450.0,0.00014794,2]
[361409839,1747558242217,-1229.67,0.00014794,2]
[361409840,1747558242227,-450.0,0.00014794,2]
[361409841,1747558242236,-450.0,0.00014794,2]
[361409842,1747558242246,-450.0,0.00014794,2]
[361409843,1747558242255,-450.0,0.00014794,2]
[361409844,1747558242264,-450.0,0.00014794,2]
[361409845,1747558242273,-579.62,0.00014794,2]
[361409846,1747558242283,-151.0,0.000148,2]
[361409847,1747558242292,-445.33254315,0.00014811,2]
[361409848,1747558242302,-502.59956458,0.00014811,2]
[361409849,1747558242311,-151.0,0.00014813,2]
[361409850,1747558242321,-961.07457308,0.00014813,2]
[361409851,1747558242330,-450.0,0.00014931,2]
[361409852,1747558242339,-450.0,0.00014931,2]
[361409853,1747558242348,-450.0,0.00014931,2]
[361409854,1747558242358,-450.0,0.00014931,2]
[361409856,1747558242367,-450.0,0.00014931,2]
[361409857,1747558242376,-151.0,0.00014931,2]
[361409858,1747558242385,-450.0,0.00014931,2]
[361409859,1747558242395,-377.96,0.00014931,2]
[361409860,1747558242405,-788.0,0.00014931,2]
[361409861,1747558242414,-665.09,0.00014931,2]
[361409862,1747558242424,-450.0,0.00014931,2]
[361409863,1747558242435,-221.208592,0.00014931,2]
[361409864,1747558242444,-450.0,0.00014931,2]
[361409865,1747558242454,-976.15,0.00014931,2]
[361409866,1747558242463,-1644.57,0.00014931,2]
[361409867,1747558242472,-560.43,0.00014931,2]
[361409868,1747558242482,-450.0,0.00014931,2]
[361409875,1747558242594,-974.99,0.00014931,2]
[361409878,1747558242604,-646.56,0.00014931,2]
[361409881,1747558242614,-544.08,0.00014931,2]
[361409883,1747558242623,-506.44,0.00014931,2]
[361409885,1747558242633,-450.0,0.00014931,2]
[361409887,1747558242642,-450.0,0.00014931,2]
[361409889,1747558242651,-450.0,0.00014931,2]
[361409890,1747558242660,-574.87,0.00014931,2]
[361409891,1747558242670,-327.8,0.00014931,2]
[361409892,1747558242679,-181.2,0.00014931,2]
[361409893,1747558242689,-450.0,0.00014931,2]
[361409894,1747558242698,-1229.67,0.00014931,2]
[361409895,1747558242710,-450.0,0.00014931,2]
[361409896,1747558242719,-450.0,0.00014931,2]
[361409897,1747558242728,-450.0,0.00014931,2]
[361409898,1747558242738,-450.0,0.00014931,2]
[361409899,1747558242748,-450.0,0.00014931,2]
[361409900,1747558242758,-615.11351069,0.00014939,2]
[361409901,1747558242767,-500.0,0.00014939,2]
[361409902,1747558242776,-13062.42516927,0.00014969,2]
[361409903,1747558242786,-450.0,0.00015068,2]
[361409904,1747558242796,-450.0,0.00015068,2]
[361409905,1747558242805,-450.0,0.00015068,2]
[361409906,1747558242814,-450.0,0.00015068,2]
[361409907,1747558242823,-450.0,0.00015068,2]
[361409908,1747558242832,-450.0,0.00015068,2]
[361409909,1747558242842,-788.0,0.00015068,2]
[361409910,1747558242851,-665.09,0.00015068,2]
[361409911,1747558242860,-450.0,0.00015068,2]
[361409912,1747558242869,-434.04,0.00015068,2]
[361409913,1747558242879,-976.15,0.00015068,2]
[361409914,1747558242888,-1644.57,0.00015068,2]
[361409915,1747558242898,-560.43,0.00015068,2]
[361409916,1747558242907,-450.0,0.00015068,2]
[361409917,1747558242916,-974.99,0.00015068,2]
[361409918,1747558242926,-646.56,0.00015068,2]
[361409919,1747558242935,-506.44,0.00015068,2]
[361409920,1747558242945,-450.0,0.00015068,2]
[361409921,1747558242955,-450.0,0.00015068,2]
[361409922,1747558242964,-450.0,0.00015068,2]
[361409923,1747558242973,-574.87,0.00015068,2]
[361409924,1747558242983,-450.0,0.00015068,2]
[361409925,1747558242993,-1229.67,0.00015068,2]
[361409926,1747558243002,-522.88,0.00015068,2]
[361409927,1747558243011,-450.0,0.00015068,2]
[361409928,1747558243021,-450.0,0.00015068,2]
[361409929,1747558243030,-450.0,0.00015068,2]
[361409930,1747558243040,-450.0,0.00015068,2]
[361409931,1747558243049,-151.0,0.00015205,2]
[361409932,1747558243058,-322.24,0.00015205,2]
[361409934,1747558243067,-450.0,0.00015205,2]
[361409936,1747558243076,-450.0,0.00015205,2]
[361409937,1747558243085,-450.0,0.00015205,2]
[361409938,1747558243095,-450.0,0.00015205,2]
[361409940,1747558243104,-450.0,0.00015205,2]
[361409941,1747558243114,-788.0,0.00015205,2]
[361409942,1747558243123,-665.09,0.00015205,2]
[361409943,1747558243133,-450.0,0.00015205,2]
[361409944,1747558243142,-976.15,0.00015205,2]
[361409945,1747558243151,-1644.57,0.00015205,2]
[361409946,1747558243161,-560.43,0.00015205,2]
[361409947,1747558243170,-473.53135826,0.00015205,2]
[361409948,1747558243180,-974.99,0.00015205,2]
[361409949,1747558243189,-646.56,0.00015205,2]
[361409950,1747558243198,-506.44,0.00015205,2]
[361409951,1747558243208,-450.0,0.00015205,2]
[361409952,1747558243218,-450.0,0.00015205,2]
[361409953,1747558243228,-450.0,0.00015205,2]
[361409955,1747558243237,-574.87,0.00015205,2]
[361409957,1747558243247,-450.0,0.00015205,2]
[361409959,1747558243256,-1229.67,0.00015205,2]
[361409961,1747558243266,-450.0,0.00015205,2]
[361409963,1747558243275,-450.0,0.00015205,2]
[361409965,1747558243285,-450.0,0.00015205,2]
[361409967,1747558243294,-450.0,0.00015205,2]
[361409969,1747558243305,-5000.0,0.00015334,2]
[361409971,1747558243314,-509.8,0.00015342,2]
[361409973,1747558243323,-291.470584,0.00015342,2]
[361409975,1747558243332,-450.0,0.00015342,2]
[361409977,1747558243341,-450.0,0.00015342,2]
[361409979,1747558243350,-184.76,0.00015342,2]
[361409981,1747558243361,-450.0,0.00015342,2]
[361409983,1747558243370,-788.0,0.00015342,2]
[361409985,1747558243378,-665.09,0.00015342,2]
[361409987,1747558243387,-450.0,0.00015342,2]
[361409988,1747558243397,-976.15,0.00015342,2]
[361409990,1747558243406,-1644.57,0.00015342,2]
[361409992,1747558243415,-560.43,0.00015342,2]
[361409994,1747558243424,-974.99,0.00015342,2]
[361409996,1747558243433,-646.56,0.00015342,2]
[361409998,1747558243442,-506.44,0.00015342,2]
[361410000,1747558243451,-525.36,0.00015342,2]
[361410002,1747558243461,-450.0,0.00015342,2]
[361410004,1747558243470,-450.0,0.00015342,2]
[361410006,1747558243479,-574.87,0.00015342,2]
[361410008,1747558243488,-366.28,0.00015342,2]
[361410010,1747558243497,-1229.67,0.00015342,2]
[361410012,1747558243506,-450.0,0.00015342,2]
[361410014,1747558243516,-450.0,0.00015342,2]
[361410016,1747558243525,-450.0,0.00015342,2]
[361410018,1747558243534,-450.0,0.00015342,2]
[361410020,1747558243543,-13062.42516927,0.00015383,2]
[361410022,1747558243552,-151.0,0.000154,2]
[361410024,1747558243561,-450.0,0.00015479,2]
[361410026,1747558243570,-450.0,0.00015479,2]
[361410028,1747558243579,-151.0,0.00015479,2]
[361410030,1747558243588,-481.2,0.00015479,2]
[361410032,1747558243598,-788.0,0.00015479,2]
[361410034,1747558243607,-665.09,0.00015479,2]
[361410037,1747558243616,-450.0,0.00015479,2]
[361410040,1747558243626,-976.15,0.00015479,2]
[361410042,1747558243635,-1644.57,0.00015479,2]
[361410044,1747558243646,-560.43,0.00015479,2]
[361410046,1747558243655,-974.99,0.00015479,2]
[361410048,1747558243664,-646.56,0.00015479,2]
[361410049,1747558243673,-506.44,0.00015479,2]
[361410051,1747558243682,-450.0,0.00015479,2]
[361410053,1747558243693,-450.0,0.00015479,2]
[361410055,1747558243703,-574.87,0.00015479,2]
[361410057,1747558243714,-1229.67,0.00015479,2]
[361410059,1747558243724,-450.0,0.00015479,2]
[361410061,1747558243733,-450.0,0.00015479,2]
[361410063,1747558243741,-450.0,0.00015479,2]
[361410065,1747558243750,-450.0,0.00015479,2]
[361410067,1747558243760,-546.0,0.00015591,2]
[361410069,1747558243770,-707.0,0.00015591,2]
[361410071,1747558243779,-2237.0,0.00015591,2]
[361410073,1747558243789,-404.0,0.00015591,2]
[361410075,1747558243798,-450.0,0.00015616,2]
[361410076,1747558243807,-573.16,0.00015616,2]
[361410077,1747558243816,-788.0,0.00015616,2]
[361410078,1747558243825,-665.09,0.00015616,2]
[361410079,1747558243835,-450.0,0.00015616,2]
[361410080,1747558243844,-976.15,0.00015616,2]
[361410081,1747558243853,-1644.57,0.00015616,2]
[361410082,1747558243862,-560.43,0.00015616,2]
[361410083,1747558243872,-974.99,0.00015616,2]
[361410084,1747558243881,-646.56,0.00015616,2]
[361410085,1747558243890,-506.44,0.00015616,2]
[361410086,1747558243899,-450.0,0.00015616,2]
[361410087,1747558243908,-450.0,0.00015616,2]
[361410088,1747558243917,-574.87,0.00015616,2]
[361410089,1747558243926,-1229.67,0.00015616,2]
[361410090,1747558243935,-450.0,0.00015616,2]
[361410091,1747558243945,-450.0,0.00015616,2]
[361410093,1747558243954,-450.0,0.00015616,2]
[361410094,1747558243963,-450.0,0.00015616,2]
[361410095,1747558243973,-151.0,0.00015753,2]
[361410096,1747558243982,-450.0,0.00015753,2]
[361410098,1747558243992,-788.0,0.00015753,2]
[361410100,1747558244001,-665.09,0.00015753,2]
[361410102,1747558244010,-450.0,0.00015753,2]
[361410104,1747558244019,-976.15,0.00015753,2]
[361410106,1747558244028,-1644.57,0.00015753,2]
[361410108,1747558244038,-560.43,0.00015753,2]
[361410109,1747558244046,-974.99,0.00015753,2]
[361410111,1747558244056,-646.56,0.00015753,2]
[361410113,1747558244066,-506.44,0.00015753,2]
[361410115,1747558244075,-450.0,0.00015753,2]
[361410117,1747558244086,-450.0,0.00015753,2]
[361410120,1747558244095,-574.87,0.00015753,2]
[361410122,1747558244105,-1229.67,0.00015753,2]
[361410124,1747558244114,-450.0,0.00015753,2]
[361410126,1747558244124,-350.31,0.00015753,2]
[361410128,1747558244133,-450.0,0.00015753,2]
[361410130,1747558244143,-171.36,0.00015753,2]
[361410132,1747558244152,-13062.42516927,0.00015797,2]
[361410134,1747558244162,-5000.0,0.00015882,2]
[361410136,1747558244171,-264.766,0.0001589,2]
[361410138,1747558244180,-450.0,0.0001589,2]
[361410140,1747558244189,-788.0,0.0001589,2]
[361410142,1747558244199,-665.09,0.0001589,2]
[361410144,1747558244208,-450.0,0.0001589,2]
[361410145,1747558244217,-976.15,0.0001589,2]
[361410146,1747558244227,-1644.57,0.0001589,2]
[361410147,1747558244237,-560.43,0.0001589,2]
[361410148,1747558244247,-974.99,0.0001589,2]
[361410149,1747558244258,-646.56,0.0001589,2]
[361410150,1747558244268,-506.44,0.0001589,2]
[361410151,1747558244277,-546.84,0.0001589,2]
[361410152,1747558244287,-450.0,0.0001589,2]
[361410153,1747558244297,-574.87,0.0001589,2]
[361410154,1747558244306,-1229.67,0.0001589,2]
[361410155,1747558244315,-489.53,0.0001589,2]
[361410156,1747558244325,-450.0,0.0001589,2]
[361410157,1747558244334,-161.64283718,0.00015969,2]
[361410158,1747558244343,-151.0,0.00016,2]
[361410160,1747558244353,-476.56,0.00016027,2]
[361410162,1747558244362,-788.0,0.00016027,2]
[361410164,1747558244371,-665.09,0.00016027,2]
[361410166,1747558244380,-450.0,0.00016027,2]
[361410168,1747558244390,-976.15,0.00016027,2]
[361410170,1747558244400,-1644.57,0.00016027,2]
[361410172,1747558244409,-560.43,0.00016027,2]
[361410174,1747558244419,-974.99,0.00016027,2]
[361410176,1747558244428,-646.56,0.00016027,2]
[361410178,1747558244438,-506.44,0.00016027,2]
[361410180,1747558244447,-450.0,0.00016027,2]
[361410182,1747558244457,-574.87,0.00016027,2]
[361410184,1747558244466,-1229.67,0.00016027,2]
[361410186,1747558244476,-450.0,0.00016027,2]
[361410188,1747558244486,-151.0,0.00016164,2]
[361410190,1747558244495,-500.0,0.00016164,2]
[361410192,1747558244505,-500.0,0.00016164,2]
[361410194,1747558244514,-500.0,0.00016164,2]
[361410196,1747558244523,-500.0,0.00016164,2]
[361410198,1747558244533,-500.0,0.00016164,2]
[361410200,1747558244542,-500.0,0.00016164,2]
[361410202,1747558244551,-500.0,0.00016164,2]
[361410204,1747558244560,-500.0,0.00016164,2]
[361410205,1747558244569,-500.0,0.00016164,2]
[361410207,1747558244579,-233.45881868,0.00016164,2]
[361410209,1747558244588,-500.0,0.00016164,2]
[361410211,1747558244597,-500.0,0.00016164,2]
[361410213,1747558244605,-300.0,0.00016164,2]
[361410215,1747558244614,-151.0,0.00016164,2]
[361410217,1747558244623,-788.0,0.00016164,2]
[361410219,1747558244632,-665.09,0.00016164,2]
[361410221,1747558244642,-450.0,0.00016164,2]
[361410223,1747558244651,-976.15,0.00016164,2]
[361410225,1747558244661,-1644.57,0.00016164,2]
[361410227,1747558244670,-560.43,0.00016164,2]
[361410229,1747558244679,-974.99,0.00016164,2]
[361410231,1747558244688,-646.56,0.00016164,2]
[361410233,1747558244697,-506.44,0.00016164,2]
[361410235,1747558244709,-450.0,0.00016164,2]
[361410237,1747558244721,-574.87,0.00016164,2]
[361410249,1747558244828,-1229.67,0.00016164,2]
[361410251,1747558244838,-374.09,0.00016164,2]
[361410253,1747558244847,-307.10471333,0.00016188,2]
[361410255,1747558244856,-13062.42516927,0.0001621,2]
[361410257,1747558244865,-788.0,0.00016301,2]
[361410259,1747558244874,-665.09,0.00016301,2]
[361410261,1747558244883,-450.0,0.00016301,2]
[361410263,1747558244893,-976.15,0.00016301,2]
[361410264,1747558244903,-1644.57,0.00016301,2]
[361410266,1747558244912,-560.43,0.00016301,2]
[361410268,1747558244922,-974.99,0.00016301,2]
[361410269,1747558244933,-646.56,0.00016301,2]
[361410271,1747558244942,-506.44,0.00016301,2]
[361410273,1747558244953,-450.0,0.00016301,2]
[361410275,1747558244962,-574.87,0.00016301,2]
[361410277,1747558244972,-1229.67,0.00016301,2]
[361410279,1747558244983,-788.0,0.00016438,2]
[361410281,1747558244993,-665.09,0.00016438,2]
[361410283,1747558245002,-450.0,0.00016438,2]
[361410285,1747558245012,-976.15,0.00016438,2]
[361410287,1747558245021,-1644.57,0.00016438,2]
[361410289,1747558245030,-560.43,0.00016438,2]
[361410291,1747558245039,-974.99,0.00016438,2]
[361410293,1747558245048,-646.56,0.00016438,2]
[361410295,1747558245058,-506.44,0.00016438,2]
[361410297,1747558245067,-326.0,0.00016438,2]
[361410299,1747558245076,-574.87,0.00016438,2]
[361410301,1747558245085,-1229.67,0.00016438,2]
[361410303,1747558245094,-151.0,0.000165,2]
[361410305,1747558245103,-788.0,0.00016575,2]
[361410307,1747558245112,-665.09,0.00016575,2]
[361410309,1747558245120,-450.0,0.00016575,2]
[361410311,1747558245129,-976.15,0.00016575,2]
[361410313,1747558245139,-1644.57,0.00016575,2]
[361410315,1747558245148,-560.43,0.00016575,2]
[361410317,1747558245157,-974.99,0.00016575,2]
[361410319,1747558245166,-646.56,0.00016575,2]
[361410321,1747558245175,-506.44,0.00016575,2]
[361410323,1747558245184,-574.87,0.00016575,2]
[361410325,1747558245194,-1229.67,0.00016575,2]
[361410327,1747558245203,-13062.42516927,0.00016624,2]
[361410329,1747558245214,-788.0,0.00016712,2]
[361410331,1747558245225,-665.09,0.00016712,2]
[361410333,1747558245235,-450.0,0.00016712,2]
[361410335,1747558245244,-976.15,0.00016712,2]
[361410337,1747558245253,-1644.57,0.00016712,2]
[361410339,1747558245263,-560.43,0.00016712,2]
[361410341,1747558245273,-974.99,0.00016712,2]
[361410343,1747558245282,-646.56,0.00016712,2]
[361410345,1747558245290,-506.44,0.00016712,2]
[361410346,1747558245299,-574.87,0.00016712,2]
[361410348,1747558245308,-1229.67,0.00016712,2]
[361410350,1747558245317,-151.0,0.00016849,2]
[361410352,1747558245327,-788.12,0.00016849,2]
[361410354,1747558245337,-665.09,0.00016849,2]
[361410356,1747558245346,-279.42,0.00016849,2]
[361410358,1747558245355,-976.29,0.00016849,2]
[361410360,1747558245364,-1644.6196,0.00016849,2]
[361410362,1747558245373,-560.55,0.00016849,2]
[361410364,1747558245383,-974.99,0.00016849,2]
[361410367,1747558245392,-646.6,0.00016849,2]
[361410369,1747558245401,-506.66694866,0.00016849,2]
[361410372,1747558245410,-574.99,0.00016849,2]